bitfinex-derivatives/quotes_BNBF0:USTF0_20251219
["timestamp","ask_amount","ask_price","bid_price","bid_amount"]
[1766148085699,1.16766847,847.99,847.19,0.88379631]
[1766148085899,1.16766847,847.98,847.19,0.88379631]
[1766148086196,1.16766847,847.97,847.19,0.88379631]
[1766148086501,0.20524677,848.04,847.19,0.88379631]
[1766148086694,1.16760021,848.03,847.19,0.88379631]
[1766148086898,1.16760021,848.02,847.19,0.88379631]
[1766148087096,1.16760021,848.01,847.19,0.88379631]
[1766148087296,1.16760021,848.0,847.19,0.88379631]
[1766148087496,1.16760021,847.99,847.18,0.88379631]
[1766148087801,1.16760021,847.98,847.18,0.88379631]
[1766148088001,1.16760021,847.97,847.18,0.88379631]
[1766148088198,0.20524677,848.04,847.18,0.88379631]
[1766148088398,1.16756125,848.03,847.18,0.88379631]
[1766148088599,1.16756125,848.02,847.18,0.88379631]
[1766148088803,1.16756125,848.01,847.18,0.88379631]
[1766148089102,1.16756125,848.0,847.18,0.88379631]
[1766148089303,1.16756125,847.99,847.18,0.88379631]
[1766148089602,1.16756125,847.98,847.18,0.88379631]
[1766148089802,1.16756125,847.97,847.18,0.88379631]
[1766148090003,0.20524677,848.04,847.18,0.88379631]
[1766148090204,1.16751336,848.03,847.18,0.88379631]
[1766148090403,1.16751336,848.02,847.18,0.88379631]
[1766148090604,1.16751336,848.01,847.18,0.88379631]
[1766148090801,1.16751336,848.0,847.18,0.88379631]
[1766148090999,1.16751336,847.99,847.18,0.88379631]
[1766148091204,1.16751336,847.98,847.18,0.88379631]
[1766148091406,1.16751336,847.97,847.18,0.88379631]
[1766148091606,0.20524677,848.04,847.18,0.88379631]
[1766148091902,1.16747639,848.03,847.18,0.88379631]
[1766148092102,1.16747639,848.02,847.18,0.88379631]
[1766148092303,1.16747639,848.01,847.18,0.88379631]
[1766148092503,1.16747639,848.0,847.18,0.88379631]
[1766148092706,0.20524677,848.04,847.18,0.88379631]
[1766148092904,1.16749237,848.03,847.2,0.88379631]
[1766148093104,1.16749237,848.02,847.2,0.88379631]
[1766148093307,1.16749237,848.01,847.2,0.88379631]
[1766148093504,1.16749237,848.0,847.2,0.88379631]
[1766148093805,0.20524677,848.04,847.2,0.88379631]
[1766148094010,1.16745317,848.03,847.2,0.88379631]
[1766148094305,1.16745317,848.02,847.2,0.88379631]
[1766148094504,1.16745317,848.01,847.2,0.88379631]
[1766148094705,1.16745317,848.0,847.2,0.88379631]
[1766148094910,0.20524677,848.04,847.2,0.88379631]
[1766148095206,1.16740976,848.03,847.2,0.88379631]
[1766148095405,1.16740976,848.02,847.2,0.88379631]
[1766148095609,1.16740976,848.01,847.2,0.88379631]
[1766148095809,1.16740976,848.0,847.2,0.88379631]
[1766148096007,0.20524677,848.04,847.2,0.88379631]
[1766148096210,1.16734472,848.03,847.2,0.88379631]
[1766148096506,1.16734472,848.02,847.2,0.88379631]
[1766148096808,1.16734472,848.01,847.2,0.88379631]
[1766148097011,1.16734472,848.0,847.2,0.88379631]
[1766148097307,0.20524677,848.04,847.2,0.88379631]
[1766148097511,1.16728782,848.03,847.2,0.88379631]
[1766148097811,1.16728782,848.02,847.2,0.88379631]
[1766148098107,1.16728782,848.01,847.2,0.88379631]
[1766148098313,0.20524677,848.04,847.2,0.88379631]
[1766148098607,1.16724969,848.03,847.2,0.88379631]
[1766148098808,1.16724969,848.02,847.2,0.88379631]
[1766148099112,0.20524677,848.04,847.21,0.88379631]
[1766148099307,0.20524677,848.04,847.24,0.88379631]
[1766148100311,0.20524677,848.04,847.23,0.88379631]
[1766148103309,0.20524677,848.04,847.22,0.88379631]
[1766148106117,0.20524677,848.04,847.22,0.88296519]
[1766148108015,0.20524677,848.04,847.25,0.88296519]
[1766148108321,55.1430503,848.44,847.36,0.88296519]
[1766148108519,0.20523345,848.11,847.36,0.88296519]
[1766148109421,0.20523345,848.11,847.35,0.88296519]
[1766148110516,0.20523345,848.11,847.34,0.88296519]
[1766148111316,0.20523345,848.11,847.33,0.88296519]
[1766148113121,0.20523345,848.11,847.32,0.88296519]
[1766148114021,0.20523345,848.11,847.17,1.1655277]
[1766148114220,0.20523345,848.11,847.32,0.88168812]
[1766148114418,0.20523345,848.11,847.31,0.88168812]
[1766148116323,0.20523345,848.11,847.3,0.88168812]
[1766148119525,0.20523345,848.11,847.29,0.88168812]
[1766148124823,0.20523345,848.11,847.28,0.88168812]
[1766148125024,0.20523345,848.11,847.27,0.88168812]
[1766148126125,0.20523345,848.11,847.2,0.88168812]
[1766148128331,0.20523345,848.11,847.21,0.88168812]
[1766148130528,0.20523345,848.11,847.06,1.1655277]
[1766148130529,0.20523345,848.11,847.22,0.88168812]
[1766148132334,0.20523345,848.11,847.23,0.88168812]
[1766148132935,0.20523345,848.11,847.25,0.88168812]
[1766148134434,0.20523345,848.11,847.26,0.88168812]
[1766148135433,0.20523345,848.11,847.27,0.88168812]
[1766148136639,0.20523345,848.11,847.28,0.88168812]
[1766148138537,0.20523345,848.11,847.29,0.88168812]
[1766148138740,0.20523345,848.11,847.28,0.88168812]
[1766148138941,0.20523345,848.11,847.29,0.88168812]
[1766148140440,0.20523345,848.11,847.3,0.88168812]
[1766148140840,0.20523345,848.11,846.59,0.20532851]
[1766148140841,0.20523345,848.11,847.31,0.88168812]
[1766148141236,0.20523345,848.11,847.32,0.88168812]
[1766148141438,0.20523345,848.11,847.34,0.88168812]
[1766148143339,0.20523345,848.11,847.35,0.88168812]
[1766148147241,0.20523345,848.11,847.33,0.88168812]
[1766148149346,0.20523345,848.11,847.34,0.88168812]
[1766148152347,0.20523345,848.11,847.19,1.1655277]
[1766148152348,0.20523345,848.11,847.35,0.88168812]
[1766148155349,0.20523345,848.11,847.36,0.88168812]
[1766148157752,1.16812716,847.88,846.86,0.88168812]
[1766148157952,1.16812716,847.88,846.71,1.1655277]
[1766148157953,1.16812716,847.79,846.78,0.88168812]
[1766148158159,1.16672793,847.78,846.78,0.88168812]
[1766148158359,1.16672793,847.77,846.72,0.88168812]
[1766148158556,1.16672793,847.76,846.72,0.88168812]
[1766148158756,1.16672793,847.75,846.72,0.88168812]
[1766148158956,1.16672793,847.74,846.72,0.88168812]
[1766148159159,1.16672793,847.73,846.72,0.88168812]
[1766148159459,1.16672793,847.72,846.68,0.88168812]
[1766148159759,1.16672793,847.71,846.68,0.88234326]
[1766148159960,1.16672793,847.7,846.68,0.88234326]
[1766148160157,1.16672793,847.69,846.68,0.88234326]
[1766148160461,1.16672793,847.68,846.65,0.88234326]
[1766148160760,1.16672793,847.67,846.65,0.88234326]
[1766148160958,1.16812716,847.92,846.65,0.88234326]
[1766148161157,1.1630884,847.91,846.64,0.88234326]
[1766148161357,1.1630884,847.9,846.62,0.88234326]
[1766148161558,1.1630884,847.89,846.62,0.88234326]
[1766148161761,1.1630884,847.88,846.62,0.88234326]
[1766148162057,1.1630884,847.87,846.62,0.88234326]
[1766148162261,1.1630884,847.86,846.62,0.88234326]
[1766148162457,1.1630884,847.85,846.59,0.88234326]
[1766148162657,1.1630884,847.84,846.59,0.88234326]
[1766148162858,1.1630884,847.83,846.58,0.88234326]
[1766148163062,1.1630884,847.82,846.58,0.88234326]
[1766148163261,1.1630884,847.81,846.57,0.88234326]
[1766148163464,1.1630884,847.8,846.55,0.88234326]
[1766148163659,1.1630884,847.79,846.55,0.88234326]
[1766148163960,1.1630884,847.78,846.55,0.88234326]
[1766148164160,1.1630884,847.77,846.55,0.88234326]
[1766148164465,1.1630884,847.76,846.53,0.88234326]
[1766148164659,1.1630884,847.75,846.53,0.88234326]
[1766148164861,1.1630884,847.74,846.53,0.88234326]
[1766148165061,1.16812716,847.99,846.53,0.88234326]
[1766148165261,1.16043056,847.98,846.53,0.88234326]
[1766148165464,1.16043056,847.97,846.51,0.88234326]
[1766148165766,1.16043056,847.96,846.51,0.88234326]
[1766148165963,1.16043056,847.95,846.51,0.88234326]
[1766148166165,1.16043056,847.94,846.51,0.88234326]
[1766148166362,1.16043056,847.93,846.5,0.88234326]
[1766148166566,1.16043056,847.92,846.5,0.88234326]
[1766148166765,1.16043056,847.91,846.5,0.88234326]
[1766148166966,1.16043056,847.9,846.5,0.88234326]
[1766148167162,1.16043056,847.89,846.5,0.88234326]
[1766148167467,1.16043056,847.88,846.48,0.88234326]
[1766148167662,1.16043056,847.87,846.48,0.88234326]
[1766148167964,1.16043056,847.86,846.48,0.88234326]
[1766148168168,1.16043056,847.85,846.48,0.88234326]
[1766148168469,1.16043056,847.84,846.47,0.88234326]
[1766148168768,1.16043056,847.83,846.47,0.88234326]
[1766148168968,1.16043056,847.82,846.47,0.88234326]
[1766148169166,1.16043056,847.81,846.47,0.88234326]
[1766148169467,1.16812716,848.06,846.46,0.88234326]
[1766148169663,1.15852315,848.05,846.46,0.88234326]
[1766148169864,1.15852315,848.04,846.46,0.88234326]
[1766148170068,1.15852315,848.03,846.46,0.88234326]
[1766148170266,1.15852315,848.02,846.46,0.88234326]
[1766148170463,1.15852315,848.01,846.44,0.88234326]
[1766148170667,1.15852315,848.0,846.44,0.88234326]
[1766148170868,1.15852315,847.99,846.44,0.88234326]
[1766148171070,1.15852315,847.98,846.44,0.88234326]
[1766148171263,1.15852315,847.97,846.44,0.88234326]
[1766148171468,1.15852315,847.96,846.43,0.88234326]
[1766148171666,1.15852315,847.95,846.43,0.88234326]
[1766148171969,1.15852315,847.94,846.43,0.88234326]
[1766148172164,1.15852315,847.93,846.43,0.88234326]
[1766148172465,1.15852315,847.92,846.42,0.88234326]
[1766148172670,1.15852315,847.91,846.42,0.88234326]
[1766148172871,1.15852315,847.9,846.42,0.87760077]
[1766148173169,1.15852315,847.89,846.42,0.87760077]
[1766148173370,1.15852315,847.88,846.41,0.87760077]
[1766148173664,1.15852315,847.87,846.41,0.87760077]
[1766148173868,1.15852315,847.86,846.41,0.87760077]
[1766148174067,1.15852315,847.85,846.41,0.87760077]
[1766148174266,1.16812716,848.09,846.41,0.87760077]
[1766148174566,1.15730507,848.08,846.41,0.87760077]
[1766148174766,1.15730507,848.07,846.41,0.87760077]
[1766148174970,1.15730507,848.06,846.41,0.87760077]
[1766148175168,1.15730507,848.05,846.41,0.87760077]
[1766148175366,1.15730507,848.04,846.4,0.87760077]
[1766148175570,1.15730507,848.03,846.4,0.87760077]
[1766148175766,1.15730507,848.02,846.4,0.87760077]
[1766148175965,1.15730507,848.01,846.4,0.87760077]
[1766148176167,1.37336061,848.11,846.4,0.87760077]
[1766148176168,1.15730507,848.0,846.4,0.87760077]
[1766148176371,1.15730507,847.99,846.39,0.87760077]
[1766148176571,1.15730507,847.98,846.39,0.87760077]
[1766148176767,1.15730507,847.97,846.39,0.87760077]
[1766148177069,1.15730507,847.96,846.39,0.87760077]
[1766148177268,1.15730507,847.95,846.39,0.87760077]
[1766148177470,1.15730507,847.94,846.39,0.87760077]
[1766148177668,1.15730507,847.93,846.39,0.87760077]
[1766148177970,1.15730507,847.92,846.39,0.87760077]
[1766148178168,1.15730507,847.91,846.39,0.87760077]
[1766148178368,1.15730507,847.9,846.38,0.87760077]
[1766148178572,1.15730507,847.89,846.38,0.87760077]
[1766148178772,1.15730507,847.88,846.38,0.87760077]
[1766148179074,1.15730507,847.87,846.38,0.87760077]
[1766148179276,0.20523345,848.11,846.38,0.87760077]
[1766148179570,1.15664537,848.1,846.38,0.87760077]
[1766148179773,1.15664537,848.09,846.38,0.87760077]
[1766148179974,1.15664537,848.08,846.38,0.87760077]
[1766148180176,1.15664537,848.07,846.38,0.87760077]
[1766148180471,1.15664537,848.06,846.38,0.87760077]
[1766148180770,1.15664537,848.05,846.38,0.87760077]
[1766148180973,1.15664537,848.04,846.38,0.87760077]
[1766148181170,1.15664537,848.03,846.38,0.87760077]
[1766148181372,0.20523345,848.11,846.38,0.87760077]
[1766148181373,1.15664537,848.02,846.38,0.87760077]
[1766148181574,1.15664537,848.01,846.38,0.87760077]
[1766148181774,1.15664537,848.0,846.38,0.87760077]
[1766148182070,1.15664537,847.99,846.38,0.87760077]
[1766148182272,1.15664537,847.98,846.37,0.87760077]
[1766148182471,1.15664537,847.97,846.37,0.87760077]
[1766148182671,1.15664537,847.96,846.37,0.87760077]
[1766148182876,1.15664537,847.95,846.37,0.87760077]
[1766148183073,1.15664537,847.94,846.37,0.87760077]
[1766148183377,1.15664537,847.93,846.37,0.87760077]
[1766148183576,1.15664537,847.92,846.37,0.87760077]
[1766148183776,1.15664537,847.91,846.37,0.87760077]
[1766148183977,1.15664537,847.9,846.37,0.87760077]
[1766148184174,1.15664537,847.89,846.37,0.87760077]
[1766148184372,1.15664537,847.88,846.37,0.87760077]
[1766148184572,0.20523345,848.11,846.37,0.87760077]
[1766148184777,1.15648275,848.1,846.37,0.87760077]
[1766148184972,1.15648275,848.09,846.37,0.87760077]
[1766148185276,1.15648275,848.08,846.56,0.87760077]
[1766148185476,1.15648275,848.07,846.56,0.87760077]
[1766148185777,0.20523345,848.11,846.56,0.87760077]
[1766148185978,1.15681586,848.1,846.56,0.87760077]
[1766148186178,1.15681586,848.09,846.56,0.87760077]
[1766148186379,1.15681586,848.08,846.56,0.87760077]
[1766148186578,1.15681586,848.07,846.56,0.87760077]
[1766148186875,0.20523345,848.11,846.56,0.87760077]
[1766148187178,1.15686258,848.1,846.56,0.87760077]
[1766148187475,1.15686258,848.09,846.57,0.87760077]
[1766148187673,1.15686258,848.08,846.57,0.87760077]
[1766148187874,1.15686258,848.07,846.57,0.87760077]
[1766148188078,1.15686258,848.06,846.57,0.87760077]
[1766148188281,0.20523345,848.11,846.57,0.87760077]
[1766148188582,1.15697474,848.1,846.57,0.87760077]
[1766148188878,1.15697474,848.09,846.57,0.87760077]
[1766148189078,1.15697474,848.08,846.57,0.87760077]
[1766148189284,1.15697474,848.07,846.57,0.87760077]
[1766148189480,1.15697474,848.06,846.57,0.87760077]
[1766148189681,0.20523345,848.11,846.57,0.87760077]
[1766148189881,1.15704048,848.1,846.57,0.87760077]
[1766148190075,1.15704048,848.09,846.57,0.87760077]
[1766148190275,1.15704048,848.08,846.58,0.87760077]
[1766148190478,1.15704048,848.07,846.57,0.87760077]
[1766148190678,1.15704048,848.06,846.57,0.87760077]
[1766148190877,0.20523345,848.11,846.57,0.87760077]
[1766148191082,1.15711251,848.1,846.57,0.87760077]
[1766148191280,1.15711251,848.1,846.42,1.1655277]
[1766148191281,1.15711251,848.09,846.58,0.87760077]
[1766148191483,1.15711251,848.08,846.58,0.87760077]
[1766148191783,1.15711251,848.07,846.58,0.87760077]
[1766148191980,1.15711251,848.06,846.58,0.87760077]
[1766148192184,1.15711251,848.05,846.58,0.87760077]
[1766148192385,0.20523345,848.11,846.58,0.87760077]
[1766148192587,1.15727269,848.1,846.58,0.87760077]
[1766148192882,1.15727269,848.09,846.58,0.87760077]
[1766148193085,1.15727269,848.08,846.58,0.87760077]
[1766148193282,1.15727269,848.07,846.58,0.87760077]
[1766148193487,1.15727269,848.06,846.58,0.87760077]
[1766148193687,1.15727269,848.05,846.58,0.87760077]
[1766148193888,0.20523345,848.11,846.58,0.87760077]
[1766148194084,1.15737515,848.1,846.58,0.87760077]
[1766148194285,1.15737515,848.09,846.59,0.87760077]
[1766148194486,1.15737515,848.08,846.59,0.87760077]
[1766148194785,1.15737515,848.07,846.59,0.87760077]
[1766148194985,1.15737515,848.06,846.59,0.87760077]
[1766148195191,1.15737515,848.05,846.59,0.87760077]
[1766148195486,1.15737515,848.04,846.59,0.87760077]
[1766148195789,0.20523345,848.11,846.59,0.87760077]
[1766148196090,1.15761152,848.1,846.59,0.87760077]
[1766148196284,1.15761152,848.09,846.6,0.87760077]
[1766148196589,1.15761152,848.08,846.6,0.87760077]
[1766148196786,1.15761152,848.07,846.6,0.87760077]
[1766148196990,1.15761152,848.06,846.6,0.87760077]
[1766148197289,1.15761152,848.05,846.6,0.87760077]
[1766148197489,1.15761152,848.04,846.6,0.87760077]
[1766148197684,1.15761152,848.03,846.6,0.87760077]
[1766148197889,0.20523345,848.11,846.6,0.87760077]
[1766148198088,1.15788219,848.1,846.6,0.87760077]
[1766148198289,0.20523345,848.11,846.61,0.87760077]
[1766148198290,1.15788219,848.09,846.61,0.87760077]
[1766148198490,1.15788219,848.08,846.61,0.87760077]
[1766148198688,1.15788219,848.07,846.61,0.87760077]
[1766148198988,1.15788219,848.06,846.61,0.87760077]
[1766148199188,1.15788219,848.05,846.61,0.87760077]
[1766148199489,1.15788219,848.04,846.62,0.87760077]
[1766148199687,1.15788219,848.03,846.62,0.87760077]
[1766148199891,1.15788219,848.02,846.62,0.87760077]
[1766148200092,0.20523345,848.11,846.62,0.87760077]
[1766148200291,1.15819491,848.1,846.62,0.87760077]
[1766148200492,1.15819491,848.09,846.59,0.87760077]
[1766148200692,1.15819491,848.08,846.59,0.87760077]
[1766148200892,1.15819491,848.07,846.59,0.87760077]
[1766148201090,1.15819491,848.06,846.59,0.87760077]
[1766148201391,1.15819491,848.05,846.57,0.87760077]
[1766148201593,1.15819491,848.04,846.57,0.87760077]
[1766148201894,1.15819491,848.03,846.57,0.87760077]
[1766148202194,1.15819491,848.02,846.57,0.87760077]
[1766148202388,1.15819491,848.01,846.58,0.87760077]
[1766148202593,1.15819491,848.0,846.58,0.87760077]
[1766148202895,1.15819491,847.99,846.58,0.87760077]
[1766148203090,1.15819491,847.98,846.58,0.87760077]
[1766148203291,1.15819491,847.97,846.58,0.87760077]
[1766148203493,1.15819491,847.96,846.59,0.87760077]
[1766148203795,1.15819491,847.95,846.59,0.87760077]
[1766148204091,1.15819491,847.94,846.59,0.87760077]
[1766148204293,1.15819491,847.93,846.59,0.87760077]
[1766148204490,0.20523345,848.11,846.6,0.87760077]
[1766148204793,1.15923933,848.1,846.6,0.87760077]
[1766148205094,1.15923933,848.09,846.6,0.87760077]
[1766148205293,1.15923933,848.08,846.6,0.87760077]
[1766148205594,0.20523345,848.11,846.61,0.87760077]
[1766148205595,1.15923933,848.07,846.61,0.87760077]
[1766148205794,1.15923933,848.06,846.61,0.87760077]
[1766148205989,1.15923933,848.05,846.61,0.87760077]
[1766148206192,1.15923933,848.04,846.61,0.87760077]
[1766148206391,1.15923933,848.03,846.62,0.87760077]
[1766148206589,1.15923933,848.02,846.62,0.87760077]
[1766148206792,1.15923933,848.01,846.62,0.87760077]
[1766148206993,1.15923933,848.0,846.62,0.87760077]
[1766148207193,1.15923933,847.99,846.62,0.87760077]
[1766148207394,0.20523345,848.11,846.34,0.2053982]
[1766148207395,1.15923933,847.98,846.64,0.87760077]
[1766148207595,1.15923933,847.97,846.64,0.87760077]
[1766148207792,1.15923933,847.96,846.64,0.87760077]
[1766148207990,1.15923933,847.95,846.64,0.87760077]
[1766148208290,1.15923933,847.94,846.65,0.87760077]
[1766148208494,1.15923933,847.93,846.65,0.87760077]
[1766148208694,1.15923933,847.92,846.65,0.87760077]
[1766148208895,1.15923933,847.91,846.65,0.87760077]
[1766148209094,1.15923933,847.9,846.65,0.87760077]
[1766148209297,0.20523345,848.11,846.65,0.87760077]
[1766148209298,1.15923933,847.89,846.65,0.87760077]
[1766148209594,3.48316107,847.88,846.66,0.87760077]
[1766148209797,1.16105369,847.87,846.66,0.87760077]
[1766148210097,1.37336061,848.11,846.66,0.87760077]
[1766148210398,2.32918085,848.1,846.67,0.87760077]
[1766148210592,1.16105369,848.09,846.67,0.87760077]
[1766148211397,1.16812716,848.08,846.69,0.87760077]
[1766148211596,1.16105369,848.07,846.69,0.87760077]
[1766148212498,2.32918085,848.07,846.71,0.87760077]
[1766148212697,1.16105369,848.06,846.71,0.87760077]
[1766148213402,1.16812716,848.05,846.73,0.87760077]
[1766148213602,1.16105369,848.04,846.73,0.87760077]
[1766148214302,1.16812716,848.03,846.75,0.87760077]
[1766148214501,1.16105369,848.02,846.75,0.87760077]
[1766148215397,1.16812716,848.0,846.77,0.87760077]
[1766148215597,1.16105369,847.99,846.77,0.87760077]
[1766148216604,1.16105369,847.99,846.34,0.2053982]
[1766148216605,1.16812716,847.97,846.8,0.87760077]
[1766148216800,1.16105369,847.96,846.8,0.87760077]
[1766148217298,1.16812716,847.94,846.84,0.87760077]
[1766148217599,1.16105369,847.93,846.84,0.87760077]
[1766148219503,1.16812716,847.94,846.84,0.87760077]
[1766148219703,1.16602044,847.93,846.84,0.87760077]
[1766148219903,1.16602044,847.92,846.84,0.87760077]
[1766148220202,1.16602044,847.91,846.84,0.87760077]
[1766148220403,1.16602044,847.9,846.84,0.87760077]
[1766148220604,1.16602044,847.89,846.84,0.87760077]
[1766148220901,1.16602044,847.88,846.84,0.87760077]
[1766148221103,1.16602044,847.87,846.84,0.87760077]
[1766148221304,1.16602044,847.86,846.84,0.87760077]
[1766148221504,1.16602044,847.85,846.84,0.87760077]
[1766148221706,1.16602044,847.84,846.84,0.87760077]
[1766148221904,1.16602044,847.83,846.79,0.87760077]
[1766148222108,1.16602044,847.82,846.78,0.87760077]
[1766148222303,1.16602044,847.81,846.78,0.87760077]
[1766148222603,1.16602044,847.8,846.78,0.87760077]
[1766148222801,1.16602044,847.79,846.78,0.87760077]
[1766148223004,1.16602044,847.78,846.78,0.87760077]
[1766148223204,1.16602044,847.77,846.78,0.87760077]
[1766148223403,1.16602044,847.76,846.78,0.87760077]
[1766148223702,1.16602044,847.75,846.78,0.87760077]
[1766148223902,1.16602044,847.74,846.78,0.87760077]
[1766148224103,1.16602044,847.73,846.78,0.87760077]
[1766148224306,1.16602044,847.72,846.78,0.87760077]
[1766148224508,1.16602044,847.71,846.78,0.87760077]
[1766148224708,1.16602044,847.7,846.78,0.87760077]
[1766148224909,1.16602044,847.69,846.78,0.87760077]
[1766148225108,1.16602044,847.68,846.78,0.87760077]
[1766148225307,1.16602044,847.67,846.78,0.87760077]
[1766148225505,1.16602044,847.66,846.78,0.87760077]
[1766148225806,1.16602044,847.65,846.78,0.87760077]
[1766148226004,1.16602044,847.64,846.78,0.87760077]
[1766148226207,1.16602044,847.63,846.78,0.87760077]
[1766148226408,1.16602044,847.62,846.78,0.87760077]
[1766148226608,1.16812716,847.87,846.78,0.87760077]
[1766148226806,1.16588109,847.86,846.78,0.87760077]
[1766148227015,1.16588109,847.85,846.78,0.87760077]
[1766148227218,1.16812716,847.48,846.39,0.87760077]
[1766148227514,1.16588109,847.47,846.52,0.87760077]
[1766148227813,1.16588109,847.46,846.52,0.87760077]
[1766148228118,1.16588109,847.45,846.52,0.87760077]
[1766148228315,1.16588109,847.44,846.52,0.87760077]
[1766148228515,1.16588109,847.43,846.52,0.87760077]
[1766148228712,1.16588109,847.42,846.52,0.87760077]
[1766148229016,1.16812716,847.67,846.52,0.87760077]
[1766148229216,1.16420418,847.66,846.51,0.87760077]
[1766148229417,1.16420418,847.65,846.51,0.87760077]
[1766148229617,1.16420418,847.64,846.51,0.87760077]
[1766148229814,1.16420418,847.63,846.51,0.87760077]
[1766148230018,1.16420418,847.62,846.36,1.1655277]
[1766148230318,1.16420418,847.61,846.5,0.88298274]
[1766148230516,1.16420418,847.6,846.5,0.88298274]
[1766148230717,1.16420418,847.59,846.5,0.88298274]
[1766148230914,1.16420418,847.58,846.5,0.88298274]
[1766148231116,1.16420418,847.57,846.5,0.88298274]
[1766148231417,1.16420418,847.56,846.49,0.88298274]
[1766148231621,1.16420418,847.55,846.49,0.88298274]
[1766148231818,1.16420418,847.54,846.49,0.88298274]
[1766148232015,1.16420418,847.53,846.49,0.88298274]
[1766148232317,1.16420418,847.52,846.49,0.88298274]
[1766148232520,1.16420418,847.51,846.49,0.88298274]
[1766148232720,1.16420418,847.5,846.49,0.88298274]
[1766148232920,1.16420418,847.49,846.49,0.88298274]
[1766148233121,1.16420418,847.48,846.49,0.88298274]
[1766148233316,1.16420418,847.47,846.48,0.88298274]
[1766148233618,1.16420418,847.46,846.48,0.88298274]
[1766148233922,1.16812716,847.7,846.48,0.88298274]
[1766148234119,1.16323626,847.69,846.48,0.88298274]
[1766148234317,1.16323626,847.68,846.47,0.88298274]
[1766148234515,1.16323626,847.67,846.47,0.88298274]
[1766148234716,1.16323626,847.66,846.47,0.88298274]
[1766148234918,1.16323626,847.65,846.47,0.88298274]
[1766148235122,1.16323626,847.64,846.47,0.88298274]
[1766148235422,1.16323626,847.63,846.47,0.88298274]
[1766148235622,1.16323626,847.62,846.47,0.88298274]
[1766148235822,1.16323626,847.61,846.47,0.88298274]
[1766148236022,1.16323626,847.6,846.47,0.88298274]
[1766148236223,1.16323626,847.59,846.47,0.88298274]
[1766148236425,1.16323626,847.58,846.46,0.88298274]
[1766148236625,1.16323626,847.57,846.46,0.88298274]
[1766148236923,1.16323626,847.56,846.46,0.88298274]
[1766148237124,1.16323626,847.55,846.46,0.88298274]
[1766148237318,1.16812716,847.72,846.46,0.88298274]
[1766148237319,1.16323626,847.54,846.46,0.88298274]
[1766148237519,1.16323626,847.53,846.46,0.88298274]
[1766148237720,1.16323626,847.52,846.46,0.88298274]
[1766148238018,1.16323626,847.51,846.46,0.88298274]
[1766148238219,1.16323626,847.5,846.46,0.88298274]
[1766148238417,1.16323626,847.49,846.45,0.88298274]
[1766148238623,1.16323626,847.48,846.45,0.88298274]
[1766148238823,1.16812716,847.73,846.45,0.88298274]
[1766148239020,1.16248302,847.72,846.45,0.88298274]
[1766148239221,1.16248302,847.71,846.45,0.88298274]
[1766148239520,1.16248302,847.7,846.45,0.88298274]
[1766148239724,1.16248302,847.69,846.45,0.88298274]
[1766148239921,1.16248302,847.68,846.45,0.88298274]
[1766148240120,1.16248302,847.67,846.45,0.88298274]
[1766148240321,1.16248302,847.66,846.45,0.88298274]
[1766148240521,1.16248302,847.65,846.45,0.88298274]
[1766148240723,1.16248302,847.64,846.45,0.88298274]
[1766148240922,1.16248302,847.63,846.45,0.88298274]
[1766148241124,1.16248302,847.62,846.45,0.88298274]
[1766148241422,1.16248302,847.61,846.44,0.88298274]
[1766148241622,1.16248302,847.6,846.44,0.88298274]
[1766148241826,1.16248302,847.59,846.44,0.88298274]
[1766148242025,1.16248302,847.58,846.44,0.88298274]
[1766148242222,1.16248302,847.57,846.44,0.88298274]
[1766148242427,1.16248302,847.56,846.44,0.88298274]
[1766148242626,1.16248302,847.55,846.44,0.88298274]
[1766148242828,1.16248302,847.54,846.44,0.88298274]
[1766148243124,1.16248302,847.53,846.44,0.88298274]
[1766148243327,1.16248302,847.52,846.44,0.88298274]
[1766148243628,1.16248302,847.51,846.43,0.88298274]
[1766148243827,1.16248302,847.5,846.43,0.88298274]
[1766148244028,1.16812716,847.74,846.43,0.88298274]
[1766148244228,1.16203389,847.73,846.43,0.88298274]
[1766148244429,1.16203389,847.72,846.43,0.88298274]
[1766148244628,1.16203389,847.71,846.43,0.88298274]
[1766148244824,1.16203389,847.7,846.43,0.88298274]
[1766148245125,1.16203389,847.69,846.43,0.88298274]
[1766148245323,1.16203389,847.68,846.43,0.88298274]
[1766148245523,1.16203389,847.67,846.43,0.88298274]
[1766148245722,1.16203389,847.66,846.43,0.88298274]
[1766148246024,1.16203389,847.65,846.43,0.88298274]
[1766148246324,1.16203389,847.64,846.42,0.88298274]
[1766148246523,1.16812716,847.75,846.42,0.88298274]
[1766148246524,1.16203389,847.63,846.42,0.88298274]
[1766148246728,1.16203389,847.62,846.42,0.88298274]
[1766148246926,1.16203389,847.61,846.42,0.88298274]
[1766148247129,1.16203389,847.6,846.42,0.88298274]
[1766148247428,1.16203389,847.59,846.42,0.88298274]
[1766148247628,1.16203389,847.58,846.42,0.88298274]
[1766148247828,1.16203389,847.57,846.42,0.88298274]
[1766148248025,1.16203389,847.56,846.42,0.88298274]
[1766148248225,1.16203389,847.55,846.42,0.88298274]
[1766148248429,1.16203389,847.54,846.42,0.88298274]
[1766148248629,1.16203389,847.53,846.42,0.88298274]
[1766148248929,1.16203389,847.52,846.42,0.88298274]
[1766148249128,1.16203389,847.51,846.42,0.88298274]
[1766148249330,1.16812716,847.76,846.42,0.88298274]